[Event "GER-ch Blitz 2019"]
[Site "Magdeburg"]
[Date "2019.05.25"]
[Round "27.14"]
[White "Buhmann, Rainer"]
[Black "Wichmann, Cliff"]
[Result "1-0"]
[ECO "E06"]
[WhiteElo "2573"]
[BlackElo "2280"]
[Annotator "ChessBase"]
[PlyCount "92"]
[EventDate "2019.05.25"]
[EventType "tourn"]
[EventCountry "GER"]
[Tiebreak "Number of wins+Number of black wins"]
[SourceTitle "playchess.com"]
[Source "ChessBase"]
[SourceQuality "1"]
[TimeControl "180+2"]

1. d4 {[%emt 0:00:00]} d5 {[%emt 0:00:00]} 2. c4 {[%emt 0:00:00]} e6 {[%emt 0:
00:00]} 3. Nf3 {[%emt 0:00:01]} Nf6 {[%emt 0:00:00]} 4. g3 {[%emt 0:00:02]} Be7
{[%emt 0:00:01]} 5. Bg2 {[%emt 0:00:01]} O-O {[%emt 0:00:01]} 6. O-O {[%emt 0:
00:01]} dxc4 {[%emt 0:00:01]} 7. Qc2 {[%emt 0:00:02]} b6 {[%emt 0:00:01]} 8.
Bg5 {[%emt 0:00:09]} Nd5 {[%emt 0:00:06]} 9. Bxe7 {[%emt 0:00:03]} Qxe7 {
[%emt 0:00:01]} 10. Qxc4 {[%emt 0:00:11]} Ba6 {[%emt 0:00:05]} 11. Qc2 {
[%emt 0:00:02]} c5 {[%emt 0:00:03]} 12. Nc3 {[%emt 0:00:10]} Nc6 {[%emt 0:00:
07]} 13. dxc5 {[%emt 0:00:13]} Qxc5 {[%emt 0:00:15]} 14. Rfc1 {[%emt 0:00:04]}
Rac8 {[%emt 0:00:16]} 15. Nxd5 {[%emt 0:00:19]} Qxd5 {[%emt 0:00:36]} 16. Ne1 {
[%emt 0:00:07]} Nd4 {[%emt 0:00:52]} 17. Bxd5 {[%emt 0:00:02]} Nxc2 {[%emt 0:
00:03]} 18. Nxc2 {[%emt 0:00:16]} exd5 {[%emt 0:00:04]} 19. Nd4 {[%emt 0:00:02]
} Rc5 {[%emt 0:00:01]} 20. Rd1 {[%emt 0:00:16]} Re8 {[%emt 0:00:07]} 21. Rd2 {
[%emt 0:00:03]} g6 {[%emt 0:00:05]} 22. f3 {[%emt 0:00:02]} Kg7 {[%emt 0:00:02]
} 23. Kf2 {[%emt 0:00:01]} Re7 {[%emt 0:00:02]} 24. e3 {[%emt 0:00:06]} Bb7 {
[%emt 0:00:00]} 25. Rad1 {[%emt 0:00:06]} h5 {[%emt 0:00:03]} 26. Ne2 {[%emt 0:
00:02]} Rec7 {[%emt 0:00:03]} 27. Nc3 {[%emt 0:00:08]} Rc8 {[%emt 0:00:11]} 28.
h4 {[%emt 0:00:03]} R8c7 {[%emt 0:00:02]} 29. Rd4 {[%emt 0:00:02]} Rc8 {
[%emt 0:00:01]} 30. R1d2 {[%emt 0:00:01]} R8c7 {[%emt 0:00:01]} 31. g4 {
[%emt 0:00:23]} hxg4 {[%emt 0:00:04]} 32. Rxg4 {[%emt 0:00:02]} Bc8 {[%emt 0:
00:02]} 33. Rgd4 {[%emt 0:00:01]} Be6 {[%emt 0:00:01]} 34. Kg3 {[%emt 0:00:05]}
Kf6 {[%emt 0:00:08]} 35. e4 {[%emt 0:00:04]} Kg7 {[%emt 0:00:14]} 36. exd5 {
[%emt 0:00:01]} Bd7 {[%emt 0:00:00]} 37. d6 {[%emt 0:00:01]} Rc8 {[%emt 0:00:
01]} 38. Re4 {[%emt 0:00:03]} Be6 {[%emt 0:00:03]} 39. Red4 {[%emt 0:00:11]}
Rf5 {[%emt 0:00:11]} 40. a3 {[%emt 0:00:03]} Rh8 {[%emt 0:00:03]} 41. Ne4 {
[%emt 0:00:04]} Bd7 {[%emt 0:00:03]} 42. Rc2 {[%emt 0:00:04]} Re5 {[%emt 0:00:
07]} 43. Rc7 {[%emt 0:00:03]} Rd8 {[%emt 0:00:01]} 44. Rxa7 {[%emt 0:00:05]}
Bc6 {[%emt 0:00:02]} 45. Ra6 {[%emt 0:00:12]} f5 {[%emt 0:00:07]} 46. Ng5 {
[%emt 0:00:02]} Rb5 {[%emt 0:00:08]} 1-0

[Event "GER-ch Blitz 2019"]
[Site "Magdeburg"]
[Date "2019.05.25"]
[Round "27.15"]
[White "Koch, Thomas"]
[Black "Baskin, Robert"]
[Result "1-0"]
[ECO "D56"]
[WhiteElo "2474"]
[BlackElo "2398"]
[Annotator "ChessBase"]
[PlyCount "123"]
[EventDate "2019.05.25"]
[EventType "tourn"]
[EventCountry "GER"]
[Tiebreak "Number of wins+Number of black wins"]
[SourceTitle "playchess.com"]
[Source "ChessBase"]
[SourceQuality "1"]
[TimeControl "180+2"]

1. d4 {[%emt 0:00:00]} Nf6 {[%emt 0:00:00]} 2. c4 {[%emt 0:00:00]} e6 {[%emt 0:
00:00]} 3. Nf3 {[%emt 0:00:00]} d5 {[%emt 0:00:00]} 4. Nc3 {[%emt 0:00:01]} Be7
{[%emt 0:00:02]} 5. Bg5 {[%emt 0:00:01]} h6 {[%emt 0:00:01]} 6. Bh4 {[%emt 0:
00:01]} O-O {[%emt 0:00:04]} 7. e3 {[%emt 0:00:01]} Nbd7 {[%emt 0:00:05]} 8.
Bd3 {[%emt 0:00:03]} c5 {[%emt 0:00:04]} 9. cxd5 {[%emt 0:00:02]} Nxd5 {
[%emt 0:00:01]} 10. Bxe7 {[%emt 0:00:04]} Nxe7 {[%emt 0:00:01]} 11. O-O {
[%emt 0:00:02]} b6 {[%emt 0:00:02]} 12. Be4 {[%emt 0:00:19]} Rb8 {[%emt 0:00:
01]} 13. Rc1 {[%emt 0:00:01]} Bb7 {[%emt 0:00:03]} 14. Bxb7 {[%emt 0:00:10]}
Rxb7 {[%emt 0:00:01]} 15. Ne4 {[%emt 0:00:01]} cxd4 {[%emt 0:00:12]} 16. Nxd4 {
[%emt 0:00:03]} Rc7 {[%emt 0:00:13]} 17. Nb5 {[%emt 0:00:22]} Rxc1 {[%emt 0:00:
06]} 18. Qxc1 {[%emt 0:00:01]} Qa8 {[%emt 0:00:06]} 19. Ned6 {[%emt 0:00:11]}
Rd8 {[%emt 0:00:10]} 20. Rd1 {[%emt 0:00:28]} Nf6 {[%emt 0:00:15]} 21. Nc3 {
[%emt 0:00:32]} a6 {[%emt 0:00:32]} 22. Nc4 {[%emt 0:00:07]} b5 {[%emt 0:00:06]
} 23. Ne5 {[%emt 0:00:10]} Qb8 {[%emt 0:00:19]} 24. Nf3 {[%emt 0:00:16]} Rxd1+
{[%emt 0:00:19]} 25. Qxd1 {[%emt 0:00:01]} Qc7 {[%emt 0:00:02]} 26. h3 {
[%emt 0:00:05]} b4 {[%emt 0:00:05]} 27. Ne2 {[%emt 0:00:11]} Ne4 {[%emt 0:00:
08]} 28. Qd3 {[%emt 0:00:05]} Qb7 {[%emt 0:00:26]} 29. Nf4 {[%emt 0:00:04]} Nf5
{[%emt 0:00:07]} 30. Ne5 {[%emt 0:00:03]} Nf6 {[%emt 0:00:21]} 31. f3 {[%emt 0:
00:03]} g5 {[%emt 0:00:04]} 32. Ne2 {[%emt 0:00:01]} Qc7 {[%emt 0:00:03]} 33.
Ng4 {[%emt 0:00:03]} Nxg4 {[%emt 0:00:03]} 34. hxg4 {[%emt 0:00:01]} Nd6 35.
Kf2 {[%emt 0:00:02]} Qc5 {[%emt 0:00:03]} 36. Qxa6 {[%emt 0:00:07]} Nc4 {
[%emt 0:00:01]} 37. Qa8+ {[%emt 0:00:01]} Kg7 {[%emt 0:00:01]} 38. Qe4 {
[%emt 0:00:03]} Nxb2 {[%emt 0:00:01]} 39. Nd4 {[%emt 0:00:04]} Nd1+ {[%emt 0:
00:01]} 40. Kg3 {[%emt 0:00:03]} Nc3 {[%emt 0:00:02]} 41. Qxe6 {[%emt 0:00:06]}
Qxd4 {[%emt 0:00:01]} 42. Qe7 {[%emt 0:00:11]} Qb6 {[%emt 0:00:07]} 43. Kh3 {
[%emt 0:00:00]} Nd5 {[%emt 0:00:02]} 44. Qe5+ {[%emt 0:00:01]} Nf6 {[%emt 0:00:
01]} 45. e4 {[%emt 0:00:02]} Qf2 {[%emt 0:00:03]} 46. Kh2 {[%emt 0:00:02]} Qh4+
{[%emt 0:00:01]} 47. Kg1 {[%emt 0:00:00]} Qe1+ {[%emt 0:00:01]} 48. Kh2 {
[%emt 0:00:00]} Qf2 {[%emt 0:00:04]} 49. Qd6 {[%emt 0:00:03]} Qxa2 {[%emt 0:00:
01]} 50. Qxb4 {[%emt 0:00:02]} Qe6 {[%emt 0:00:01]} 51. Qd4 {[%emt 0:00:01]}
Kg6 {[%emt 0:00:00]} 52. Qd3 {[%emt 0:00:01]} Nd7 {[%emt 0:00:01]} 53. e5+ {
[%emt 0:00:02]} Kg7 {[%emt 0:00:01]} 54. Kg1 {[%emt 0:00:01]} Nxe5 {[%emt 0:00:
01]} 55. Qe4 {[%emt 0:00:01]} Ng6 {[%emt 0:00:01]} 56. Qd3 {[%emt 0:00:01]}
Qb6+ {[%emt 0:00:02]} 57. Kh2 {[%emt 0:00:01]} Qc7+ {[%emt 0:00:02]} 58. Kg1 {
[%emt 0:00:01]} Qe7 {[%emt 0:00:01]} 59. Qd4+ {[%emt 0:00:01]} Qe5 {[%emt 0:00:
01]} 60. Qd3 {[%emt 0:00:01]} Nf4 {[%emt 0:00:01]} 61. Qd2 {[%emt 0:00:00]}
Qd4+ {[%emt 0:00:00]} 62. Qxd4+ 1-0

[Event "GER-ch Blitz 2019"]
[Site "Magdeburg"]
[Date "2019.05.25"]
[Round "28.1"]
[White "Zuyev, Igor"]
[Black "Gustafsson, Jan"]
[Result "1-0"]
[ECO "C55"]
[WhiteElo "2447"]
[BlackElo "2639"]
[Annotator "ChessBase"]
[PlyCount "67"]
[EventDate "2019.05.25"]
[EventType "tourn"]
[EventCountry "GER"]
[Tiebreak "Number of wins+Number of black wins"]
[SourceTitle "playchess.com"]
[Source "ChessBase"]
[SourceQuality "1"]
[TimeControl "180+2"]

1. e4 {[%emt 0:00:00]} e5 {[%emt 0:00:00]} 2. Nf3 {[%emt 0:00:00]} Nc6 {
[%emt 0:00:00]} 3. d4 exd4 {[%emt 0:00:01]} 4. Bc4 {[%emt 0:00:03]} Nf6 {
[%emt 0:00:02]} 5. e5 {[%emt 0:00:12]} Ne4 {[%emt 0:00:02]} 6. Qe2 {[%emt 0:00:
07]} Nc5 {[%emt 0:00:02]} 7. c3 {[%emt 0:00:05]} d3 {[%emt 0:00:02]} 8. Qe3 {
[%emt 0:00:06]} Be7 {[%emt 0:00:03]} 9. b4 {[%emt 0:00:05]} Ne6 {[%emt 0:00:02]
} 10. O-O {[%emt 0:00:06]} d5 {[%emt 0:00:06]} 11. exd6 {[%emt 0:00:05]} Bxd6 {
[%emt 0:00:11]} 12. Nbd2 {[%emt 0:00:06]} O-O {[%emt 0:00:05]} 13. Bxd3 {
[%emt 0:00:04]} Re8 {[%emt 0:00:14]} 14. Re1 {[%emt 0:00:08]} Bd7 {[%emt 0:00:
05]} 15. Be4 {[%emt 0:00:07]} Nf4 {[%emt 0:00:08]} 16. Nc4 {[%emt 0:00:09]} Bf5
{[%emt 0:00:30]} 17. Nxd6 {[%emt 0:00:07]} Qxd6 {[%emt 0:00:04]} 18. Qxf4 {
[%emt 0:00:23]} Bxe4 {[%emt 0:00:10]} 19. Be3 {[%emt 0:00:09]} Qd5 {[%emt 0:00:
21]} 20. Rad1 {[%emt 0:00:06]} Qxa2 {[%emt 0:00:06]} 21. b5 {[%emt 0:00:02]}
Nd8 {[%emt 0:00:25]} 22. Bd4 {[%emt 0:00:10]} f5 {[%emt 0:00:20]} 23. Ng5 {
[%emt 0:00:07]} Ne6 {[%emt 0:00:12]} 24. Qe5 {[%emt 0:00:08]} Re7 {[%emt 0:00:
08]} 25. Bc5 {[%emt 0:00:09]} Nxg5 {[%emt 0:00:12]} 26. Bxe7 {[%emt 0:00:10]}
Nf7 {[%emt 0:00:06]} 27. Qxc7 {[%emt 0:00:08]} h6 {[%emt 0:00:03]} 28. f3 {
[%emt 0:00:07]} Bd5 {[%emt 0:00:02]} 29. Qd7 {[%emt 0:00:13]} Bb3 {[%emt 0:00:
07]} 30. Ra1 {[%emt 0:00:06]} Qc2 {[%emt 0:00:05]} 31. b6 {[%emt 0:00:06]} Qxc3
{[%emt 0:00:04]} 32. Qxb7 {[%emt 0:00:09]} Qd4+ {[%emt 0:00:03]} 33. Kh1 {
[%emt 0:00:05]} Bd5 {[%emt 0:00:01]} 34. Qd7 {[%emt 0:00:08]} 1-0

[Event "GER-ch Blitz 2019"]
[Site "Magdeburg"]
[Date "2019.05.25"]
[Round "28.2"]
[White "Stein, Robert"]
[Black "Frischmann, Rick"]
[Result "0-1"]
[ECO "D07"]
[WhiteElo "2318"]
[BlackElo "2320"]
[Annotator "NA"]
[PlyCount "86"]
[EventDate "2019.05.25"]
[EventType "tourn"]
[EventCountry "GER"]
[Tiebreak "Number of wins+Number of black wins"]
[SourceTitle "playchess.com"]
[Source "ChessBase"]
[SourceQuality "1"]
[TimeControl "180+2"]

1. d4 {[%emt 0:00:00]} d5 {[%emt 0:00:00]} 2. c4 {[%emt 0:00:00]} Nc6 {[%emt 0:
00:00]} 3. cxd5 {[%emt 0:00:00]} Qxd5 {[%emt 0:00:00]} 4. e3 {[%emt 0:00:01]}
e5 {[%emt 0:00:01]} 5. Nc3 {[%emt 0:00:00]} Bb4 6. a3 Bxc3+ {[%emt 0:00:01]} 7.
bxc3 {[%emt 0:00:01]} Nf6 {[%emt 0:00:01]} 8. c4 Qd6 9. d5 {[%emt 0:00:02]} Nb8
{[%emt 0:00:01]} 10. a4 {[%emt 0:00:00]} Na6 {[%emt 0:00:04]} 11. Ba3 {[%emt 0:
00:02]} Nc5 {[%emt 0:00:03]} 12. Nf3 {[%emt 0:00:03]} Nfd7 {[%emt 0:00:10]} 13.
Be2 {[%emt 0:00:05]} O-O {[%emt 0:00:01]} 14. O-O {[%emt 0:00:01]} a5 {[%emt 0:
00:07]} 15. Nd4 {[%emt 0:00:12]} exd4 {[%emt 0:00:11]} 16. exd4 {[%emt 0:00:01]
} b6 {[%emt 0:00:00]} 17. dxc5 Nxc5 {[%emt 0:00:02]} 18. Qd4 {[%emt 0:00:21]}
Re8 {[%emt 0:00:01]} 19. Bxc5 {[%emt 0:00:05]} bxc5 {[%emt 0:00:01]} 20. Qd2 {
[%emt 0:00:00]} Rb8 {[%emt 0:00:03]} 21. Bd3 {[%emt 0:00:05]} Rb4 {[%emt 0:00:
05]} 22. Rfe1 {[%emt 0:00:11]} Bd7 {[%emt 0:00:00]} 23. Rxe8+ {[%emt 0:00:01]}
Bxe8 {[%emt 0:00:01]} 24. Qc2 {[%emt 0:00:10]} g6 {[%emt 0:00:04]} 25. Qe2 {
[%emt 0:00:46]} Bd7 {[%emt 0:00:09]} 26. h3 {[%emt 0:00:19]} Qf6 {[%emt 0:00:
01]} 27. Ra2 {[%emt 0:00:17]} Kg7 {[%emt 0:00:08]} 28. Qe3 {[%emt 0:00:11]} Qd6
{[%emt 0:00:28]} 29. h4 {[%emt 0:00:11]} h5 {[%emt 0:00:07]} 30. Qc1 {[%emt 0:
00:18]} Qe5 {[%emt 0:00:09]} 31. Bf1 {[%emt 0:00:08]} Bf5 {[%emt 0:00:11]} 32.
g3 {[%emt 0:00:11]} Rb1 {[%emt 0:00:02]} 33. Qe3 {[%emt 0:00:07]} Qxe3 {
[%emt 0:00:18]} 34. fxe3 {[%emt 0:00:01]} Bd3 {[%emt 0:00:05]} 35. Rf2 {
[%emt 0:00:02]} Bxc4 {[%emt 0:00:02]} 36. e4 {[%emt 0:00:01]} Re1 {[%emt 0:00:
29]} 37. Kg2 {[%emt 0:00:04]} Bxf1+ {[%emt 0:00:01]} 38. Rxf1 {[%emt 0:00:00]}
Rxe4 {[%emt 0:00:02]} 39. Rc1 {[%emt 0:00:01]} c4 {[%emt 0:00:06]} 40. Kf3 {
[%emt 0:00:01]} f5 {[%emt 0:00:01]} 41. Rb1 {[%emt 0:00:03]} c3 {[%emt 0:00:01]
} 42. Rb7 {[%emt 0:00:14]} Rc4 {[%emt 0:00:11]} 43. d6 {[%emt 0:00:00]} c2 {
[%emt 0:00:09]} 0-1

[Event "GER-ch Blitz 2019"]
[Site "Magdeburg"]
[Date "2019.05.25"]
[Round "28.3"]
[White "Hirneise, Jens"]
[Black "Schmaltz, Roland"]
[Result "0-1"]
[ECO "C41"]
[WhiteElo "2375"]
[BlackElo "2461"]
[Annotator "ChessBase"]
[PlyCount "60"]
[EventDate "2019.05.25"]
[EventType "tourn"]
[EventCountry "GER"]
[Tiebreak "Number of wins+Number of black wins"]
[SourceTitle "playchess.com"]
[Source "ChessBase"]
[SourceQuality "1"]
[TimeControl "180+2"]

1. e4 {[%emt 0:00:00]} d6 {[%emt 0:00:00]} 2. d4 {[%emt 0:00:00]} Nf6 {[%emt 0:
00:00]} 3. Nc3 {[%emt 0:00:01]} e5 {[%emt 0:00:00]} 4. Nf3 {[%emt 0:00:01]}
Nbd7 {[%emt 0:00:01]} 5. g4 {[%emt 0:00:01]} g6 {[%emt 0:00:01]} 6. g5 {
[%emt 0:00:10]} Nh5 {[%emt 0:00:01]} 7. Be3 {[%emt 0:00:02]} Bg7 {[%emt 0:00:
01]} 8. Qd2 {[%emt 0:00:02]} O-O {[%emt 0:00:05]} 9. O-O-O {[%emt 0:00:11]} c6
{[%emt 0:00:07]} 10. Ne2 {[%emt 0:00:16]} Re8 {[%emt 0:00:29]} 11. Ng3 {
[%emt 0:00:07]} Nf4 {[%emt 0:00:06]} 12. Bxf4 {[%emt 0:00:10]} exf4 {[%emt 0:
00:01]} 13. Qxf4 {[%emt 0:00:02]} Nf8 {[%emt 0:00:24]} 14. h4 {[%emt 0:00:09]}
Ne6 {[%emt 0:00:02]} 15. Qd2 {[%emt 0:00:03]} Qb6 {[%emt 0:00:03]} 16. h5 {
[%emt 0:00:29]} c5 {[%emt 0:00:02]} 17. hxg6 {[%emt 0:00:10]} hxg6 {[%emt 0:00:
02]} 18. c3 {[%emt 0:00:14]} cxd4 {[%emt 0:00:09]} 19. cxd4 {[%emt 0:00:09]}
Bd7 {[%emt 0:00:07]} 20. Kb1 {[%emt 0:00:07]} Ba4 {[%emt 0:00:10]} 21. Rc1 {
[%emt 0:00:29]} Rac8 {[%emt 0:00:10]} 22. Bc4 {[%emt 0:00:10]} Nxd4 {[%emt 0:
00:16]} 23. Nxd4 {[%emt 0:00:07]} Qxd4 {[%emt 0:00:03]} 24. Qxd4 {[%emt 0:00:
09]} Bxd4 {[%emt 0:00:02]} 25. b3 {[%emt 0:00:17]} Bc6 {[%emt 0:00:07]} 26. Rc2
{[%emt 0:00:03]} Rxe4 {[%emt 0:00:12]} 27. Rd1 {[%emt 0:00:10]} Rg4 {[%emt 0:
00:06]} 28. Bd5 {[%emt 0:00:04]} Be5 {[%emt 0:00:04]} 29. Ne4 {[%emt 0:00:02]}
Rxe4 {[%emt 0:00:04]} 30. Bxc6 {[%emt 0:00:02]} Rxc6 {[%emt 0:00:02]} 0-1

[Event "GER-ch Blitz 2019"]
[Site "Magdeburg"]
[Date "2019.05.25"]
[Round "28.4"]
[White "Kopylov, Daniel"]
[Black "Stern, Rene"]
[Result "0-1"]
[ECO "C47"]
[WhiteElo "2263"]
[BlackElo "2538"]
[Annotator "ChessBase"]
[PlyCount "98"]
[EventDate "2019.05.25"]
[EventType "tourn"]
[EventCountry "GER"]
[Tiebreak "Number of wins+Number of black wins"]
[SourceTitle "playchess.com"]
[Source "ChessBase"]
[SourceQuality "1"]
[TimeControl "180+2"]

1. e4 {[%emt 0:00:00]} e5 {[%emt 0:00:00]} 2. Nf3 {[%emt 0:00:00]} Nc6 {
[%emt 0:00:00]} 3. Nc3 {[%emt 0:00:02]} Nf6 {[%emt 0:00:00]} 4. d4 {[%emt 0:00:
01]} exd4 {[%emt 0:00:01]} 5. Nxd4 {[%emt 0:00:01]} Bc5 {[%emt 0:00:01]} 6. Nb3
{[%emt 0:00:05]} Bb6 {[%emt 0:00:02]} 7. Qe2 {[%emt 0:00:01]} d6 {[%emt 0:00:
03]} 8. Be3 {[%emt 0:00:02]} O-O {[%emt 0:00:03]} 9. O-O-O {[%emt 0:00:04]} Re8
{[%emt 0:00:07]} 10. f3 {[%emt 0:00:16]} Be6 {[%emt 0:00:05]} 11. g4 {[%emt 0:
00:10]} Ne5 {[%emt 0:00:10]} 12. g5 {[%emt 0:00:26]} Bc4 {[%emt 0:00:03]} 13.
Qf2 {[%emt 0:00:04]} Nfg4 14. fxg4 {[%emt 0:00:20]} Nxg4 {[%emt 0:00:07]} 15.
Qf3 {[%emt 0:00:29]} Nxe3 {[%emt 0:00:07]} 16. Bxc4 {[%emt 0:00:01]} Nxc4 {
[%emt 0:00:02]} 17. Nd5 {[%emt 0:00:07]} c6 {[%emt 0:00:06]} 18. Nxb6 {[%emt 0:
00:47]} axb6 {[%emt 0:00:02]} 19. Kb1 {[%emt 0:00:03]} Qxg5 {[%emt 0:00:11]}
20. Rhg1 {[%emt 0:00:04]} Qe5 {[%emt 0:00:01]} 21. c3 {[%emt 0:00:10]} Qxe4+ {
[%emt 0:00:07]} 22. Qxe4 Rxe4 {[%emt 0:00:01]} 23. Nd4 {[%emt 0:00:07]} d5 {
[%emt 0:00:16]} 24. b3 {[%emt 0:00:15]} Ne3 {[%emt 0:00:03]} 25. Rde1 {[%emt 0:
00:08]} Rae8 {[%emt 0:00:02]} 26. Re2 {[%emt 0:00:04]} g6 {[%emt 0:00:02]} 27.
Rge1 {[%emt 0:00:01]} f5 {[%emt 0:00:03]} 28. Nf3 {[%emt 0:00:02]} Ng4 {
[%emt 0:00:07]} 29. Rxe4 {[%emt 0:00:04]} fxe4 {[%emt 0:00:05]} 30. Ng5 {
[%emt 0:00:02]} h6 {[%emt 0:00:05]} 31. Nh3 {[%emt 0:00:02]} g5 {[%emt 0:00:01]
} 32. Re2 {[%emt 0:00:02]} Rf8 {[%emt 0:00:01]} 33. Kb2 {[%emt 0:00:02]} Rf3 {
[%emt 0:00:04]} 34. Ng1 {[%emt 0:00:03]} Rf2 {[%emt 0:00:01]} 35. Rxf2 {
[%emt 0:00:01]} Nxf2 {[%emt 0:00:01]} 36. Kc2 {[%emt 0:00:02]} Kf7 {[%emt 0:00:
03]} 37. Kd2 {[%emt 0:00:01]} Ke6 {[%emt 0:00:02]} 38. Ke2 {[%emt 0:00:01]} Ng4
{[%emt 0:00:02]} 39. h3 {[%emt 0:00:01]} Nf6 {[%emt 0:00:03]} 40. Ke3 {[%emt 0:
00:02]} Nh5 {[%emt 0:00:03]} 41. Ne2 {[%emt 0:00:02]} Nf4 {[%emt 0:00:03]} 42.
Nd4+ {[%emt 0:00:01]} Ke5 {[%emt 0:00:08]} 43. b4 {[%emt 0:00:03]} Nxh3 44. a4
Nf4 {[%emt 0:00:07]} 45. a5 {[%emt 0:00:01]} bxa5 {[%emt 0:00:02]} 46. bxa5 {
[%emt 0:00:01]} Ne6 {[%emt 0:00:03]} 47. Nb3 {[%emt 0:00:03]} h5 {[%emt 0:00:
04]} 48. Nc1 {[%emt 0:00:09]} h4 {[%emt 0:00:02]} 49. Ne2 {[%emt 0:00:00]} c5 {
[%emt 0:00:03] Kd4+} 0-1

[Event "GER-ch Blitz 2019"]
[Site "Magdeburg"]
[Date "2019.05.25"]
[Round "28.5"]
[White "Schulz, Karsten"]
[Black "Zelbel, Patrick"]
[Result "0-1"]
[ECO "A37"]
[WhiteElo "2227"]
[BlackElo "2439"]
[Annotator "NA"]
[PlyCount "58"]
[EventDate "2019.05.25"]
[EventType "tourn"]
[EventCountry "GER"]
[Tiebreak "Number of wins+Number of black wins"]
[SourceTitle "playchess.com"]
[Source "ChessBase"]
[SourceQuality "1"]
[TimeControl "180+2"]

1. Nf3 {[%emt 0:00:00]} g6 {[%emt 0:00:00]} 2. g3 {[%emt 0:00:00]} Bg7 {
[%emt 0:00:00]} 3. Bg2 {[%emt 0:00:01]} c5 {[%emt 0:00:00]} 4. c4 {[%emt 0:00:
01]} Nc6 {[%emt 0:00:00]} 5. Nc3 {[%emt 0:00:01]} e6 {[%emt 0:00:00]} 6. d3 {
[%emt 0:00:02]} Nge7 {[%emt 0:00:01]} 7. Bg5 {[%emt 0:00:01]} h6 {[%emt 0:00:
03]} 8. Bd2 {[%emt 0:00:00]} O-O {[%emt 0:00:02]} 9. Qc1 {[%emt 0:00:01]} Kh7 {
[%emt 0:00:01]} 10. Rb1 {[%emt 0:00:01]} d5 {[%emt 0:00:06]} 11. a3 {[%emt 0:
00:01]} a5 {[%emt 0:00:02]} 12. O-O {[%emt 0:00:18]} b6 {[%emt 0:00:07]} 13.
cxd5 {[%emt 0:00:17]} exd5 {[%emt 0:00:07]} 14. Bf4 {[%emt 0:00:09]} Ba6 {
[%emt 0:00:14]} 15. Rd1 {[%emt 0:00:15]} Nd4 {[%emt 0:00:33]} 16. Re1 {[%emt 0:
00:14]} Rc8 {[%emt 0:00:03]} 17. Qd1 {[%emt 0:00:13]} Nxf3+ {[%emt 0:00:13]}
18. Bxf3 {[%emt 0:00:03]} d4 {[%emt 0:00:01]} 19. Ne4 {[%emt 0:00:15]} Nd5 {
[%emt 0:00:13]} 20. Bc1 {[%emt 0:00:10]} b5 {[%emt 0:00:41]} 21. Nd2 {[%emt 0:
00:22]} c4 {[%emt 0:00:03]} 22. dxc4 {[%emt 0:00:05]} bxc4 {[%emt 0:00:01]} 23.
Qa4 {[%emt 0:00:16]} c3 {[%emt 0:00:09]} 24. Nb3 {[%emt 0:00:07]} d3 {[%emt 0:
00:22]} 25. exd3 {[%emt 0:00:18]} Bxd3 26. Rd1 {[%emt 0:00:20]} c2 {[%emt 0:00:
10]} 27. Rxd3 {[%emt 0:00:01]} cxb1=Q {[%emt 0:00:03]} 28. Rxd5 {[%emt 0:00:02]
} Rxc1+ {[%emt 0:00:07]} 29. Nxc1 {[%emt 0:00:01]} Qxc1+ {[%emt 0:00:01]} 0-1

[Event "GER-ch Blitz 2019"]
[Site "Magdeburg"]
[Date "2019.05.25"]
[Round "28.6"]
[White "Schulze, Marc"]
[Black "Carow, Johannes"]
[Result "1-0"]
[ECO "D02"]
[WhiteElo "2220"]
[BlackElo "2445"]
[Annotator "NA"]
[PlyCount "69"]
[EventDate "2019.05.25"]
[EventType "tourn"]
[EventCountry "GER"]
[Tiebreak "Number of wins+Number of black wins"]
[SourceTitle "playchess.com"]
[Source "ChessBase"]
[SourceQuality "1"]
[TimeControl "180+2"]

1. d4 {[%emt 0:00:03]} d5 {[%emt 0:00:00]} 2. Bf4 {[%emt 0:00:01]} Nf6 {
[%emt 0:00:00]} 3. Nf3 {[%emt 0:00:01]} c5 {[%emt 0:00:02]} 4. e3 {[%emt 0:00:
01]} Nc6 {[%emt 0:00:01]} 5. c3 {[%emt 0:00:01]} Qb6 {[%emt 0:00:01]} 6. Qb3 {
[%emt 0:00:01]} c4 {[%emt 0:00:01]} 7. Qc2 {[%emt 0:00:00]} Bf5 {[%emt 0:00:01]
} 8. Qc1 {[%emt 0:00:01]} e6 {[%emt 0:00:01]} 9. Nbd2 {[%emt 0:00:02]} Qd8 {
[%emt 0:00:02]} 10. h3 {[%emt 0:00:02]} Be7 {[%emt 0:00:04]} 11. Be2 {[%emt 0:
00:02]} h6 {[%emt 0:00:04]} 12. O-O {[%emt 0:00:04]} b5 {[%emt 0:00:03]} 13. a3
{[%emt 0:00:01]} O-O {[%emt 0:00:04]} 14. Re1 {[%emt 0:00:01]} a5 {[%emt 0:00:
08]} 15. Bd1 {[%emt 0:00:01]} Ne4 {[%emt 0:00:34]} 16. Bc2 {[%emt 0:00:05]} Bh7
{[%emt 0:00:13]} 17. Nxe4 {[%emt 0:00:11]} dxe4 {[%emt 0:00:05]} 18. Nd2 {
[%emt 0:00:01]} f5 {[%emt 0:00:12]} 19. a4 {[%emt 0:00:01]} b4 {[%emt 0:00:10]}
20. Nxc4 {[%emt 0:00:08]} Rc8 {[%emt 0:00:01]} 21. Bb3 {[%emt 0:00:04]} Kh8 {
[%emt 0:00:04]} 22. Qd2 {[%emt 0:00:11]} Bf6 {[%emt 0:00:09]} 23. Nd6 {[%emt 0:
00:22]} e5 {[%emt 0:00:31]} 24. dxe5 {[%emt 0:00:05]} Nxe5 {[%emt 0:00:01]} 25.
Bxe5 Bxe5 {[%emt 0:00:01]} 26. Nf7+ {[%emt 0:00:38]} Rxf7 {[%emt 0:00:01]} 27.
Qxd8+ {[%emt 0:00:01]} Rxd8 {[%emt 0:00:01]} 28. Bxf7 {[%emt 0:00:01]} bxc3 {
[%emt 0:00:01]} 29. bxc3 {[%emt 0:00:01]} Bxc3 {[%emt 0:00:01]} 30. Red1 {
[%emt 0:00:00]} Rf8 {[%emt 0:00:12]} 31. Rac1 {[%emt 0:00:01]} Bb4 {[%emt 0:00:
07]} 32. Be6 {[%emt 0:00:01]} Bg6 {[%emt 0:00:09]} 33. Rc8 {[%emt 0:00:01]} Kh7
{[%emt 0:00:18]} 34. Rxf8 Bxf8 {[%emt 0:00:03]} 35. Rd5 {[%emt 0:00:03]} 1-0